Cogmind - Beta 10.1 @@@ ROGUE MODE // 2020.11.05 @ 10:21:03 Player: Demise Result: Destroyed self with Grenade Launcher Performance ------------- Evolutions (0) 0 Regions Visited (4) 800 Robots Destroyed (31) 155 Value Destroyed (331) 331 Prototype IDs (29) 580 Alien Tech Used (0) 0 Bonus (300) 300 TOTAL SCORE: 2166 Bonus ------- Aligned with FarCom 300 Cogmind --------- Core Integrity 0/250 Matter 280/300 Energy 200/200 System Corruption 0% Temperature Cool (0) Movement Rolling (140) Ox4 Location -9/Mines Parts ------- > --- POWER (1) -------- Cold Fusion Reactor > --- PROPULSION (2) --- Compact Wheel Combat Antigrav System > --- UTILITY (2) ------ Large Storage Unit High-capacity Storage Unit > --- WEAPON (2) ------- 8R-AWN's Boregun Grenade Launcher > --- INVENTORY (18) --- Advanced Myomer Leg Experimental Heat Sink Gravity Neutralizing Apparatus EX Chip 1 EX Chip 1 EX Chip 2 Makeshift System Shield Army-in-a-Box (30/30) Chronowheel Guided Plasma Cannon 8R-AWN's Boregun Makeshift Spear Deploy-a-Sentry Peak State ------------ > --- POWER ------------ Cold Fusion Reactor > --- PROPULSION ------- Compact Wheel Combat Antigrav System > --- UTILITY ---------- Large Storage Unit High-capacity Storage Unit > --- WEAPON ----------- 8R-AWN's Boregun 8R-AWN's Boregun > --- INVENTORY -------- Advanced Myomer Leg Experimental Heat Sink Gravity Neutralizing Apparatus EX Chip 1 EX Chip 1 EX Chip 2 Makeshift System Shield Army-in-a-Box Chronowheel Guided Plasma Cannon Grenade Launcher Makeshift Spear Deploy-a-Sentry [Rating: 48] Favorites ----------- Power Light Ion Engine Engine Light Ion Engine Reactor Cold Fusion Reactor Propulsion Light Treads Treads Light Treads Leg Aluminum Leg Wheel Compact Wheel Hover Unit Combat Antigrav System Utility Large Storage Unit Device Experimental Heat Sink Storage Large Storage Unit Protection Light Armor Plating Weapon Assault Rifle Energy Gun Medium Laser Energy Cannon Guided Plasma Cannon Ballistic Gun Assault Rifle Launcher Grenade Launcher Build | -11 -10 -10 -10 -9 ------- Run | Scr Mat Min Exi Min Slots Evolved . | . . . . . Power . | . . . . . Propulsion . | . . . . . Utility . | . . . . . Weapon . | . . . . . Parts Attached 51 | . 12 4 34 1 Power 5 | . 2 . 3 . Engine 4 | . 2 . 2 . Core . | . . . . . Reactor 1 | . . . 1 . Propulsion 13 | . 2 1 10 . Treads 7 | . 2 1 4 . Leg 3 | . . . 3 . Wheel 2 | . . . 2 . Hover 1 | . . . 1 . Flight . | . . . . . Utility 13 | . 3 . 10 . Device 4 | . . . 4 . Storage 7 | . 2 . 5 . Processor . | . . . . . Hackware . | . . . . . Protection 2 | . 1 . 1 . Artifact . | . . . . . Weapon 20 | . 5 3 11 1 Energy Gun 4 | . 3 1 . . Energy Cannon 1 | . . . 1 . Ballistic Gun 11 | . 1 1 9 . Ballistic Cannon . | . . . . . Launcher 4 | . 1 1 1 1 Special Weapon . | . . . . . Impact Weapon . | . . . . . Slashing Weapon . | . . . . . Piercing Weapon . | . . . . . Special Melee Weapon . | . . . . . Unidentified Prototypes 6 | . . . 6 . Parts Lost 12 | . 2 . 10 . Power 3 | . 1 . 2 . Propulsion 3 | . . . 3 . Utility 1 | . . . 1 . Weapon 5 | . 1 . 4 . Highest Loss Streak 8 | . 1 . 8 . Average Slot Usage (%) 96 | . 98 100 94 . Engine 9 | . 13 14 7 . Reactor 2 | . . . 3 . Treads 19 | . 13 28 17 . Leg 4 | . 14 . 3 . Wheel 2 | . . . 3 . Hover 1 | . . . 2 . Storage 23 | . 23 28 21 . Protection 3 | . 3 . 4 . Energy Gun 7 | . 18 14 1 . Energy Cannon 1 | . . . 3 . Ballistic Gun 18 | . 9 13 22 . Naked Turns . | . . . . . Heaviest Build 72 | 9 57 55 72 . Greatest Support 40 | 20 40 40 40 . Greatest Overweight (x) 4 | . 2 1 4 . Average Overweight (x) 1 | . 1 1 1 . Largest Inventory Capacity 18 | 6 18 18 18 18 Average Capacity 15 | 6 15 18 14 18 Most Carried 18 | 6 18 18 18 18 Average Carried 13 | 6 13 17 12 18 Final Capacity 18 | 6 18 18 18 18 Final Carried 18 | 6 17 18 18 18 Class Distribution -------------------- 93% | Mutant 6% | Scavenger-Mutant Dominant Class ---------------- Mutant | -10/Materials Mutant | -10/Mines Mutant | -10/Exiles Mutant | -9/Mines Resources | -11 -10 -10 -10 -9 ----------- Run | Scr Mat Min Exi Min Matter Collected 1181 | 200 107 44 830 . Remotely . | . . . . . Salvage Created 763 | 99 235 16 413 . Parts 61 | 2 18 8 33 . Haulers Intercepted 1 | . 1 . . . Recyclers Shooed . | . . . . . Parts Field Recycled . | . . . . . Retrieved Matter . | . . . . . Parts Self-Destructed . | . . . . . Prevented . | . . . . . Kills | -11 -10 -10 -10 -9 ------- Run | Scr Mat Min Exi Min Combat Hostiles Destroyed 17 | . 9 3 5 . Guns 8 | . 6 1 1 . AOE 9 | . 3 2 4 . Classes Destroyed 7 | 1 3 . 3 . Hauler 1 | . 1 . . . Recycler 1 | 1 . . . . Turret 1 | . . . 1 . Swarmer 8 | . 5 3 . . Grunt 4 | . 4 . . . Zionite 8 | . . . 8 . Assembled 4 | . . . 4 . Best Kill Streak 4 | 1 4 3 4 . Combat Bots Only 4 | . 4 3 4 . Max Kills in Single Turn 4 | 1 2 2 4 . Gunslinging . | . . . . . Exploded 4 | . 2 2 4 . Melee . | . . . . . Uniques/NPCs Destroyed 4 | . . . 4 . 8R-AWN (-10/Exiles) EX-HEX (-10/Exiles) EX-DEC (-10/Exiles) EX-BIN (-10/Exiles) Combat | -11 -10 -10 -10 -9 -------- Run | Scr Mat Min Exi Min Damage Taken 1653 | . 406 43 1155 49 Core 254 | . 69 . 166 19 Absorbed by Shields . | . . . . . Core Remaining (%) 100 | 100 . . . . Volleys Fired 119 | 5 34 3 76 1 Largest 2 | 2 2 2 2 1 Hottest 120 | 60 100 80 120 30 Shots Fired 192 | 10 62 6 113 1 Gun 150 | 10 59 5 76 . Cannon 35 | . . . 35 . Launcher 7 | . 3 1 2 1 Special . | . . . . . Kinetic 102 | 5 19 2 76 . Thermal 83 | 5 40 3 35 . Explosive 7 | . 3 1 2 1 Electromagnetic . | . . . . . Robot Hit Streak 30 | 4 5 2 29 30 Robot Miss Streak 5 | 1 5 2 3 . Penetration Max . | . . . . . Secondary Targets 1 | . 1 . . . Max Gunslinging Chain 1 | . 1 . . . Shots Hit Robots 118 | 7 31 2 77 1 Core Hits 65 | 2 23 4 36 . Critical Hits 3 | . . . 3 . Critical Kills . | . . . . . Critical Parts Destroyed 3 | . . . 3 . Melee Attacks . | . . . . . Impact . | . . . . . Slashing . | . . . . . Piercing . | . . . . . Sneak Attacks . | . . . . . Combat Hostiles . | . . . . . Follow-up Attacks . | . . . . . Damage Inflicted 3358 | 58 678 136 2443 43 Guns 1415 | 58 351 24 982 . Cannons 1249 | . . . 1249 . Explosions 693 | . 327 111 212 43 Melee . | . . . . . Ramming 1 | . . 1 . . Kinetic 1103 | 14 107 . 982 . Thermal 1561 | 44 244 24 1249 . Explosive 693 | . 327 111 212 43 Electromagnetic . | . . . . . Impact . | . . . . . Slashing . | . . . . . Piercing . | . . . . . Highest Corruption . | . . . . . Average Corruption . | . . . . . Corruption Purged . | . . . . . Overload Shots . | . . . . . Overflow Damage 30 | . 14 . 16 . Projectiles 16 | . . . 16 . Explosions 14 | . 14 . . . Melee . | . . . . . Knockbacks . | . . . . . Impact . | . . . . . Kinetic . | . . . . . Secondary . | . . . . . Self-Inflicted Damage 37 | . . . . 37 Shots 1 | . . . . 1 Rammed 1 | . . 1 . . Targets Rammed 1 | . . 1 . . Kicked . | . . . . . Crushed . | . . . . . Highest Temperature 255 | 20 255 18 190 . Average Temperature 56 | 15 53 8 67 . Received Heat Transfer 117 | . 117 . . . Effects 2 | . 2 . . . Interference 2 | . 2 . . . Siege Activations . | . . . . . Robots Corrupted . | . . . . . Combat Hostiles . | . . . . . Parts Fried . | . . . . . Impact Corruptions . | . . . . . Robots Melted 1 | . . . 1 . Combat Hostiles . | . . . . . Parts Melted 18 | . . . 18 . Heat Transferred 3619 | 100 645 74 2800 . Parts Sabotaged . | . . . . . Parts Stolen . | . . . . . Parts Stripped . | . . . . . Power Chain Reactions . | . . . . . Missiles Intercepted . | . . . . . Alert | -11 -10 -10 -10 -9 ------- Run | Scr Mat Min Exi Min Peak Influence 170 | 5 170 147 . . Initial 62 | . 3 62 . . Average 51 | . 45 57 . . Maximum Alert Level . | . . . . . Low Security (%) 100 | 100 100 100 . 100 Level 1 . | . . . . . Level 2 . | . . . . . Level 3 . | . . . . . Level 4 . | . . . . . Level 5 . | . . . . . High Security . | . . . . . Max Security . | . . . . . Squads Dispatched . | . . . . . Investigation . | . . . . . Extermination . | . . . . . Reinforcement . | . . . . . Assault . | . . . . . Garrison . | . . . . . Intercept . | . . . . . Construction Impeded . | . . . . . Haulers Reinforced . | . . . . . Stealth | -11 -10 -10 -10 -9 --------- Run | Scr Mat Min Exi Min Distress Signals 1 | . 1 . . . Communications Jammed . | . . . . . Distress Signals . | . . . . . Times Spotted 61 | . 20 3 34 4 Peak Tracking Total 9 | . 7 3 9 4 Tactical Retreats 4 | . . . 4 . Traps | -11 -10 -10 -10 -9 ------- Run | Scr Mat Min Exi Min Traps Triggered . | . . . . . Indirectly . | . . . . . Trap Hack Attempts . | . . . . . Triggered . | . . . . . Disarmed . | . . . . . Reprogrammed . | . . . . . Reused . | . . . . . Traps Extracted . | . . . . . Installed . | . . . . . Triggered . | . . . . . Exploded 3 | . . . 3 . Machines | -11 -10 -10 -10 -9 ---------- Run | Scr Mat Min Exi Min Machines Disabled 5 | . . 1 4 . Max in Single Turn 2 | . . 1 2 . Machines Sabotaged . | . . . . . Garrisons Compromised . | . . . . . Overloaded Fab Kills . | . . . . . Fab Network Shutdowns . | . . . . . Hacking | -11 -10 -10 -10 -9 --------- Run | Scr Mat Min Exi Min Machines Accessed 6 | . 4 . 2 . Terminals 4 | . 4 . . . Fabricators . | . . . . . Repair Stations . | . . . . . Recycling Units . | . . . . . Scanalyzers . | . . . . . Garrison Access . | . . . . . Total Hacks 15 | . 13 . 2 . Successful 7 | . 5 . 2 . Failed 8 | . 8 . . . Catastrophic . | . . . . . Database Lockouts . | . . . . . Manual 14 | . 13 . 1 . Terminals 13 | . 13 . . . Fabricators . | . . . . . Repair Stations . | . . . . . Recycling Units . | . . . . . Scanalyzers . | . . . . . Garrison Access . | . . . . . Terminal Hacks 4 | . 2 . 2 . Record 1 | . . . 1 . Branch Access Points 1 | . 1 . . . Locate Traps 1 | . 1 . . . EX-Prototype ID Bank 1 | . . . 1 . Fabricator Hacks . | . . . . . Repair Station Hacks . | . . . . . Recycling Unit Hacks . | . . . . . Scanalyzer . | . . . . . Garrison Access Hacks . | . . . . . Unauthorized Hacks 3 | . 3 . . . Terminals 3 | . 3 . . . Botnet 2 | . 2 . . . Operators 1 | . 1 . . . Fabricators . | . . . . . Repair Stations . | . . . . . Recycling Units . | . . . . . Scanalyzers . | . . . . . Garrison Access . | . . . . . Data Cores Recovered . | . . . . . Used . | . . . . . Hacking Detections 4 | . 4 . . . Full Trace Events . | . . . . . Feedback Events . | . . . . . Feedback Blocked . | . . . . . Robot Schematics Acquired . | . . . . . Robots Built . | . . . . . Matter . | . . . . . Time . | . . . . . Total Robot Build Rating . | . . . . . Part Schematics Acquired . | . . . . . Parts Built . | . . . . . Matter . | . . . . . Time . | . . . . . Total Part Build Rating . | . . . . . Parts Repaired . | . . . . . Time . | . . . . . Parts Recycled . | . . . . . Recycled Matter . | . . . . . Retrieved Matter . | . . . . . Retrieved Components . | . . . . . Parts Scanalyzed . | . . . . . Part Schematics Acquired . | . . . . . Parts Damaged . | . . . . . Bothacking | -11 -10 -10 -10 -9 ------------ Run | Scr Mat Min Exi Min Used RIF Installer . | . . . . . Robots Hacked . | . . . . . Non-combat . | . . . . . Combat . | . . . . . Robot Hacks Applied . | . . . . . Relay Couplers Released . | . . . . . Robots Rewired . | . . . . . Allies Hacked . | . . . . . Hacks Repelled . | . . . . . Allies | -11 -10 -10 -10 -9 -------- Run | Scr Mat Min Exi Min Total Allies . | . . . . . Largest Group . | . . . . . Highest-Rated Group . | . . . . . Highest-Rated Ally . | . . . . . Total Orders . | . . . . . Ally Attacks . | . . . . . Total Damage . | . . . . . Kills . | . . . . . Allies Corrupted . | . . . . . Allies Melted . | . . . . . Intel | -11 -10 -10 -10 -9 ------- Run | Scr Mat Min Exi Min Robot Analysis Total . | . . . . . Derelict Logs Recovered 2 | . . 2 . . Drone Launches . | . . . . . Drone Recoveries . | . . . . . Exploration | -11 -10 -10 -10 -9 ------------- Run | Scr Mat Min Exi Min Turns Passed 4078 | 14 707 831 2524 2 Spaces Moved 2173 | 1 339 449 1384 . Core . | . . . . . Treads 1267 | . 156 449 662 . Legs 517 | 1 183 . 333 . Wheels 389 | . . . 389 . Hover . | . . . . . Flight . | . . . . . Fastest Speed 120 | 120 120 180 120 . Average Speed 161 | 120 166 180 153 . Slowest Speed 230 | 120 200 180 230 . Overloaded Moves . | . . . . . Propulsion Burnouts . | . . . . . Robots Hopped . | . . . . . Cave-ins Triggered . | . . . . . Exploration Rate (%) 49 | 1 63 93 88 3 Regions Visited 4 Branch Regions 3 Pre-discovered Areas 2 | . . 1 1 . Known Exits Taken 1 | . 1 . . . Unknown Exits Taken 3 | 1 . 1 1 . Scrap Searched 1 | . . 1 . . Spaces Dug . | . . . . . Terrain Destroyed 36 | . 21 7 8 . Melee . | . . . . . Projectile . | . . . . . AOE 36 | . 21 7 8 . Terrain Rammed . | . . . . . Walls Destroyed . | . . . . . Machines Disabled . | . . . . . Actions | -11 -10 -10 -10 -9 --------- Run | Scr Mat Min Exi Min Total 2582 | 5 424 465 1686 2 Wait 113 | . 14 6 93 . Move 2169 | . 338 448 1383 . Hop . | . . . . . Pick Up 53 | . 14 1 38 . Fast Attach 20 | . 6 . 14 . Attach 18 | . 2 . 16 . Detach 19 | . 4 . 15 . Swap 13 | . 4 4 4 1 Drop 57 | . 8 2 47 . Fire 119 | 5 34 3 76 1 Melee . | . . . . . Ram . | . . . . . Kick . | . . . . . Crush 1 | . . 1 . . Escape Stasis . | . . . . . Rewire . | . . . . . Trap . | . . . . . Miscellaneous . | . . . . . Route ------- -11/Scrapyard -10/Materials (discovered 3 exits: [*Mat x2] / *Min) -10/Mines (discovered 3 exits: [*Mat x2] / *Exi) -10/Exiles -9/Mines History --------- Turn | Location | Event 15 | -11/Scrapyard | Discovered new exit (range 0) 15 | -11/Scrapyard | Entered Materials 191 | -10/Materials | Identified exit to Mines 216 | -10/Materials | Discovered new exit (range 6) 305 | -10/Materials | Build established: Mutant 360 | -10/Materials | Discovered new exit (range 14) 722 | -10/Materials | Entered Mines 902 | -10/Mines | Deemed a non-threat by the Exiles lab entrance 902 | -10/Mines | Discovered new exit (range 5) 1112 | -10/Mines | Discovered new exit (range 8) 1151 | -10/Mines | Learned location of Zion (-7) 1304 | -10/Mines | Discovered new exit (range 13) 1435 | -10/Mines | Learned Materials stockpile data 1553 | -10/Mines | Entered Exiles 1598 | -10/Exiles | Met 8R-AWN 1627 | -10/Exiles | Met EX-HEX 1721 | -10/Exiles | Met EX-DEC 1847 | -10/Exiles | Discovered new exit (range 10) 2241 | -10/Exiles | Met EX-BIN 2263 | -10/Exiles | Aligned with FarCom system 2265 | -10/Exiles | Given EX-Vault access code 2302 | -10/Exiles | Opened EX-Vault 2311 | -10/Exiles | Found Gui. Plasma Cannon 2347 | -10/Exiles | Warned to stay clear of 0b10 Research branches 2587 | -10/Exiles | Attacked by the Exiles 2746 | -10/Exiles | Core integrity fell below 50% 2766 | -10/Exiles | Core integrity fell below 20% 2768 | -10/Exiles | Lost 8 parts (2p3n1u2w) 2792 | -10/Exiles | Destroyed 8R-AWN 2847 | -10/Exiles | Found Prototype Ballistic Gun 2849 | -10/Exiles | Found Prototype Ballistic Gun 3331 | -10/Exiles | Destroyed EX-HEX 3383 | -10/Exiles | Destroyed EX-DEC 3466 | -10/Exiles | Destroyed EX-BIN 3481 | -10/Exiles | Found Prototype Device 3481 | -10/Exiles | Identified System Purifier 3536 | -10/Exiles | Identified 8R-AWN's Boregun (x2) 3571 | -10/Exiles | Found Deploy-a-Sentry 3806 | -10/Exiles | Found Army-in-a-Box 3810 | -10/Exiles | Found Chronowheel 4077 | -10/Exiles | Stole four prototypes: Army-in-a-Box, Chronowheel, Gui. Plasma Cannon, Deploy-a-Sentry 4077 | -10/Exiles | Entered Mines 4079 | -9/Mines | Destroyed self with Grenade Launcher Last Messages --------------- 03607_ Dropped Mak. Leg. 03608_ Dropped Lrg. Battery. 03610_ Dropped Mak. Salvage Targeting Computer. 03610_ Acquired EX Chip 1. 03611_ Acquired 22 matter. 03614_ Extracted 1 energy. 03624_ Acquired EX Chip 2. 03626_ Acquired EX Chip 1. 03652_ Dropped Lgt. Treads. 03653_ Acquired Adv. Myomer Leg. 03696_ Acquired Lrg. Storage Unit. 03799_ Dropped Lrg. Storage Unit. 03804_ Dropped Assault Rifle. 03806_ Acquired Army-in-a-Box. 03810_ Dropped Assault Rifle. 03810_ Acquired Chronowheel. 03922_ Extracted 1 energy. 04000_ Acquired 10 matter. LOCATION=UNKNOWN GOAL=ESCAPE Map ----- +----------------------------------------------------+ | ?????????????????????????????????????????? | | ?????????????????????????????????????????? | | ?????????????????????????????????????????? | | ?????????????????????????????????????????? | | ?????????????????????????????????????????? | | ?????????????????????????????????????????? | | ?????????????????????????????????????????? | | ?????????????????????????????????????????? | | ?????????????????????????????????????????? | | ?????????????????????????????????????????? | | ?????????????????????????????????????????? | | ?????????????????????????????????????????? | | ?????????????????????????????????????????? | | ?????????????????????????????????????????? | | ?????????????????????????????????????????? | | ?????????????????????????????????????????? | | ?????????????????????????????????????????? | | ?????????????????????????????????????????? | | ?????????????????????????????????????????? | | ?????????????????????????????????????????? | | ?????????????????????????????????????????? | | ?????????????????????????????????????????? | | ?????????????????????????????????????????? | | ???????????????######????????????????????? | | ??????????????##ss ##???????????????????? | | ??????????????# s@ #???????????????????? | | ????????? s #???????????????????? | | ???????# #???????????????????? | | ???????# # # ##???????????????????? | | ??????# ?#$#####????????????????????? | | ?????# #??#??????????????????????????? | | ?????# ???????????????????????????????? | | ?????# < ????????????????????????????????? | | ?????# ??????????????????????????????????? | | ????? ???????????????????????????????????? | | ?????????????????????????????????????????? | | ?????????????????????????????????????????? | | ?????????????????????????????????????????? | | ?????????????????????????????????????????? | | ?????????????????????????????????????????? | | ?????????????????????????????????????????? | | ?????????????????????????????????????????? | | ?????????????????????????????????????????? | | ?????????????????????????????????????????? | | ?????????????????????????????????????????? | | ?????????????????????????????????????????? | | ?????????????????????????????????????????? | | ?????????????????????????????????????????? | | ?????????????????????????????????????????? | | ?????????????????????????????????????????? | +----------------------------------------------------+ Best States ------------- Heat Dissipation 51 Energy Generation 17 Energy Capacity 425 Matter Stores 300 Matter Capacity 300 Sight Range 16 Terrain Scan Density 10 Armor Coverage 150 Evasion (%) 40 Recoil Reduction 2 Item Schematics ----------------- None Robot Schematics ------------------ None Fabricated ------------ Nothing Alien Tech Used ----------------- None Achievements -------------- None Challenges ------------ None Game ------ Seed TitaniumMolecularWeb Manual? 0 Play Time 00:32:31 Cumulative 74.7 hours Start 2020.11.05 @ 09:42:35 End 2020.11.05 @ 10:21:03 Sessions 3 Manual Loads 0 Difficulty Rogue Special Mode None Game No. 65 Rogue 65 Adventurer 0 Explorer 0 Win Type - Total 0 Types 0/0/0/0/0/0/0/0/0 Lore% 46 Gallery% 52 Achievement% 51 Wizard Run 0 Options --------- ASCII 0 Keyboard 1 Movement Numpad Keybinds 0 Fullscreen 1 Font 12/Terminus Map View 83x54 Tactical HUD 1 Map Filters NONE Filters NONE Steam 1 RUN: 5ee7cb46-93c7-4115-bfd8-e04a29d5ff48